[Event "Titled Tuesday Blitz July 18 Early 2023"]
[White "Gyulamiryan-koryun"]
[Black "Pourkashiyan, Atousa"]
[BlackFideId "12502014"]
[WhiteElo "1868"]
[BlackElo "2316"]
[Result "0-1"]
[Round "4"]
[TimeControl "180+2"]
[Date "2023.07.18"]
[WhiteClock "0:00:42"]
[BlackClock "0:01:36"]
[Board "193"]

1. d4 {[%clk 0:02:59]}  Nf6 {[%clk 0:02:54]} 2. c4 {[%clk 0:02:59]}  e6 {[%clk 0:02:54]} 3. Nf3 {[%clk 0:02:58]}  d5 {[%clk 0:02:54]} 4. g3 {[%clk 0:02:57]}  Be7 {[%clk 0:02:55]} 5. Bg2 {[%clk 0:02:57]}  O-O {[%clk 0:02:55]} 6. O-O {[%clk 0:02:57]}  dxc4 {[%clk 0:02:56]} 7. Qc2 {[%clk 0:02:56]}  a6 {[%clk 0:02:56]} 8. Qxc4 {[%clk 0:02:56]}  b5 {[%clk 0:02:57]} 9. Qc2 {[%clk 0:02:56]}  Bb7 {[%clk 0:02:57]} 10. Bf4 {[%clk 0:02:56]}  Nbd7 {[%clk 0:02:58]} 11. Qxc7 {[%clk 0:02:54]}  Qxc7 {[%clk 0:02:58]} 12. Bxc7 {[%clk 0:02:55]}  Rac8 {[%clk 0:02:59]} 13. Bf4 {[%clk 0:02:51]}  Rc2 {[%clk 0:02:59]} 14. Nbd2 {[%clk 0:02:35]}  Rxb2 {[%clk 0:02:58]} 15. a4 {[%clk 0:02:27]}  b4 {[%clk 0:02:51]} 16. e3 {[%clk 0:02:18]}  Bd5 {[%clk 0:02:26]} 17. a5 {[%clk 0:02:11]}  Rc8 {[%clk 0:02:19]} 18. Rfb1 {[%clk 0:02:05]}  Rcc2 {[%clk 0:02:13]} 19. Rxb2 {[%clk 0:01:45]}  Rxb2 {[%clk 0:02:14]} 20. Bf1 {[%clk 0:01:42]}  Ne4 {[%clk 0:01:53]} 21. Nxe4 {[%clk 0:01:31]}  Bxe4 {[%clk 0:01:54]} 22. Ne5 {[%clk 0:01:29]}  Nxe5 {[%clk 0:01:43]} 23. Bxe5 {[%clk 0:01:28]}  f6 {[%clk 0:01:40]} 24. Bc7 {[%clk 0:01:13]}  Bb7 {[%clk 0:01:40]} 25. Bc4 {[%clk 0:01:07]}  Kf7 {[%clk 0:01:40]} 26. h4 {[%clk 0:00:53]}  Rc2 {[%clk 0:01:37]} 27. Bb3 {[%clk 0:00:42]}  Rxc7 {[%clk 0:01:36]} 0-1


[Site "https://www.chess.com"]

[Event "Titled Tuesday Blitz July 18 Early 2023"]
[White "Novikova, Margarita"]
[Black "Borrmann, Laurenz"]
[WhiteFideId "14109689"]
[BlackFideId "312187930"]
[WhiteElo "2192"]
[BlackElo "2516"]
[Result "0-1"]
[Round "4"]
[TimeControl "180+2"]
[Date "2023.07.18"]
[WhiteClock "0:00:00"]
[BlackClock "0:01:26"]
[Board "195"]

1. e4 {[%clk 0:02:59]}  c5 {[%clk 0:02:52]} 2. Nc3 {[%clk 0:02:58]}  Nc6 {[%clk 0:02:51]} 3. d3 {[%clk 0:02:58]}  e6 {[%clk 0:02:49]} 4. g3 {[%clk 0:02:58]}  d5 {[%clk 0:02:48]} 5. Bg2 {[%clk 0:02:57]}  Nf6 {[%clk 0:02:46]} 6. Bg5 {[%clk 0:02:55]}  Be7 {[%clk 0:02:28]} 7. Nge2 {[%clk 0:02:02]}  d4 {[%clk 0:02:12]} 8. Nb1 {[%clk 0:02:01]}  h6 {[%clk 0:02:04]} 9. Bxf6 {[%clk 0:01:57]}  Bxf6 {[%clk 0:02:04]} 10. O-O {[%clk 0:01:55]}  O-O {[%clk 0:02:04]} 11. a4 {[%clk 0:01:54]}  e5 {[%clk 0:01:59]} 12. h3 {[%clk 0:01:53]}  g6 {[%clk 0:01:58]} 13. Nd2 {[%clk 0:01:51]}  Be6 {[%clk 0:01:57]} 14. b3 {[%clk 0:01:50]}  a6 {[%clk 0:01:57]} 15. f4 {[%clk 0:01:43]}  b5 {[%clk 0:01:55]} 16. f5 {[%clk 0:01:43]}  Bd7 {[%clk 0:01:55]} 17. g4 {[%clk 0:01:33]}  Bg5 {[%clk 0:01:51]} 18. Re1 {[%clk 0:01:25]}  Na5 {[%clk 0:01:45]} 19. axb5 {[%clk 0:01:22]}  axb5 {[%clk 0:01:46]} 20. Nf1 {[%clk 0:01:16]}  c4 {[%clk 0:01:46]} 21. Kh1 {[%clk 0:01:07]}  cxb3 {[%clk 0:01:39]} 22. cxb3 {[%clk 0:01:08]}  Qe7 {[%clk 0:01:39]} 23. Nh2 {[%clk 0:00:52]}  Qb4 {[%clk 0:01:32]} 24. Rb1 {[%clk 0:00:50]}  Rac8 {[%clk 0:01:27]} 25. Nf3 {[%clk 0:00:49]}  Bf6 {[%clk 0:01:27]} 26. Qd2 {[%clk 0:00:00]}  Qxd2 {[%clk 0:01:26]} 0-1


[Site "https://www.chess.com"]

[Event "Titled Tuesday Blitz July 18 Early 2023"]
[White "Ljukin, Sergei"]
[Black "Sankalan Shah"]
[WhiteFideId "14102200"]
[BlackFideId "25600362"]
[WhiteElo "2472"]
[BlackElo "2179"]
[Result "1-0"]
[Round "4"]
[TimeControl "180+2"]
[Date "2023.07.18"]
[WhiteClock "0:00:10"]
[BlackClock "0:00:00"]
[Board "198"]

1. e4 {[%clk 0:02:46]}  e5 {[%clk 0:02:58]} 2. Nf3 {[%clk 0:02:46]}  Nc6 {[%clk 0:02:58]} 3. Bb5 {[%clk 0:02:45]}  Nf6 {[%clk 0:02:57]} 4. Qe2 {[%clk 0:02:44]}  d6 {[%clk 0:02:52]} 5. c3 {[%clk 0:02:43]}  Bd7 {[%clk 0:02:53]} 6. O-O {[%clk 0:02:42]}  a6 {[%clk 0:02:53]} 7. Ba4 {[%clk 0:02:42]}  g6 {[%clk 0:02:53]} 8. d4 {[%clk 0:02:42]}  Bg7 {[%clk 0:02:52]} 9. Bxc6 {[%clk 0:02:34]}  Bxc6 {[%clk 0:02:49]} 10. dxe5 {[%clk 0:02:34]}  dxe5 {[%clk 0:02:40]} 11. Nxe5 {[%clk 0:02:33]}  O-O {[%clk 0:02:17]} 12. Nxc6 {[%clk 0:02:29]}  bxc6 {[%clk 0:02:17]} 13. Bg5 {[%clk 0:02:28]}  h6 {[%clk 0:02:13]} 14. Bh4 {[%clk 0:02:20]}  Re8 {[%clk 0:02:11]} 15. f3 {[%clk 0:02:17]}  Qb8 {[%clk 0:02:01]} 16. Na3 {[%clk 0:02:12]}  Qb6+ {[%clk 0:01:53]} 17. Bf2 {[%clk 0:02:09]}  Qa5 {[%clk 0:01:44]} 18. Nc4 {[%clk 0:02:08]}  Qb5 {[%clk 0:01:37]} 19. a4 {[%clk 0:02:07]}  Qh5 {[%clk 0:01:24]} 20. Rfe1 {[%clk 0:01:40]}  Rab8 {[%clk 0:01:13]} 21. Rad1 {[%clk 0:01:35]}  Nh7 {[%clk 0:00:42]} 22. Rd7 {[%clk 0:01:23]}  Rbc8 {[%clk 0:00:32]} 23. Rd2 {[%clk 0:00:57]}  Nf8 {[%clk 0:00:28]} 24. f4 {[%clk 0:00:48]}  Qxe2 {[%clk 0:00:17]} 25. Rexe2 {[%clk 0:00:48]}  Ne6 {[%clk 0:00:18]} 26. g3 {[%clk 0:00:39]}  Rb8 {[%clk 0:00:15]} 27. h4 {[%clk 0:00:38]}  h5 {[%clk 0:00:14]} 28. f5 {[%clk 0:00:35]}  Nf8 {[%clk 0:00:14]} 29. Kf1 {[%clk 0:00:31]}  Nh7 {[%clk 0:00:13]} 30. Bd4 {[%clk 0:00:17]}  Bh6 {[%clk 0:00:12]} 31. Rd1 {[%clk 0:00:15]}  Bg7 {[%clk 0:00:09]} 32. Bxg7 {[%clk 0:00:15]}  Kxg7 {[%clk 0:00:10]} 33. fxg6 {[%clk 0:00:15]}  fxg6 {[%clk 0:00:10]} 34. Rd7+ {[%clk 0:00:15]}  Kg8 {[%clk 0:00:10]} 35. Rxc7 {[%clk 0:00:14]}  Nf6 {[%clk 0:00:11]} 36. e5 {[%clk 0:00:13]}  Ng4 {[%clk 0:00:11]} 37. e6 {[%clk 0:00:13]}  Rf8+ {[%clk 0:00:11]} 38. Kg1 {[%clk 0:00:12]}  Rf3 {[%clk 0:00:10]} 39. e7 {[%clk 0:00:10]}  Re8 {[%clk 0:00:10]} 40. Nd6 {[%clk 0:00:09]}  Rxg3+ {[%clk 0:00:08]} 41. Kf1 {[%clk 0:00:09]}  Rf3+ {[%clk 0:00:00]} 42. Ke1 {[%clk 0:00:10]} 1-0


[Site "https://www.chess.com"]

[Event "Titled Tuesday Blitz July 18 Early 2023"]
[White "Lisjak, Zlatko"]
[Black "Hirneise, Jens"]
[WhiteFideId "14502186"]
[BlackFideId "24614734"]
[WhiteElo "2157"]
[BlackElo "2470"]
[Result "0-1"]
[Round "4"]
[TimeControl "180+2"]
[Date "2023.07.18"]
[WhiteClock "0:00:00"]
[BlackClock "0:01:24"]
[Board "199"]

1. d4 {[%clk 0:03:00]}  Nf6 {[%clk 0:02:57]} 2. Nc3 {[%clk 0:02:59]}  c5 {[%clk 0:02:55]} 3. d5 {[%clk 0:02:57]}  d6 {[%clk 0:02:53]} 4. e4 {[%clk 0:02:56]}  g6 {[%clk 0:02:53]} 5. h4 {[%clk 0:02:47]}  h5 {[%clk 0:02:51]} 6. Bg5 {[%clk 0:02:46]}  Bg7 {[%clk 0:02:49]} 7. Qd2 {[%clk 0:02:46]}  a6 {[%clk 0:02:47]} 8. O-O-O {[%clk 0:02:43]}  b5 {[%clk 0:02:46]} 9. f3 {[%clk 0:02:44]}  Qa5 {[%clk 0:02:44]} 10. Kb1 {[%clk 0:02:43]}  Nbd7 {[%clk 0:02:41]} 11. Nh3 {[%clk 0:02:39]}  Nb6 {[%clk 0:02:39]} 12. Re1 {[%clk 0:02:16]}  Nfd7 {[%clk 0:02:32]} 13. Nd1 {[%clk 0:01:40]}  b4 {[%clk 0:02:29]} 14. f4 {[%clk 0:01:36]}  c4 {[%clk 0:02:19]} 15. e5 {[%clk 0:01:27]}  dxe5 {[%clk 0:02:18]} 16. f5 {[%clk 0:01:16]}  c3 {[%clk 0:02:08]} 17. Qf2 {[%clk 0:00:52]}  Nxd5 {[%clk 0:01:54]} 18. fxg6 {[%clk 0:00:34]}  f6 {[%clk 0:01:48]} 19. Bc4 {[%clk 0:00:29]}  N7b6 {[%clk 0:01:40]} 20. Bb3 {[%clk 0:00:29]}  Be6 {[%clk 0:01:34]} 21. Bc1 {[%clk 0:00:24]}  cxb2 {[%clk 0:01:29]} 22. Bxb2 {[%clk 0:00:19]}  Na4 {[%clk 0:01:29]} 23. Bxa4+ {[%clk 0:00:05]}  Qxa4 {[%clk 0:01:30]} 24. Qf3 {[%clk 0:00:05]}  Rc8 {[%clk 0:01:25]} 25. Re2 {[%clk 0:00:00]}  Nc3+ {[%clk 0:01:24]} 0-1


[Site "https://www.chess.com"]

[Event "Titled Tuesday Blitz July 18 Early 2023"]
[White "Karthik, Advaith"]
[Black "Palacio,Igor Da Paz"]
[WhiteFideId "30946050"]
[BlackFideId "2121140"]
[WhiteElo "2430"]
[BlackElo "2153"]
[Result "1-0"]
[Round "4"]
[TimeControl "180+2"]
[Date "2023.07.18"]
[WhiteClock "0:01:19"]
[BlackClock "0:00:00"]
[Board "200"]

1. d4 {[%clk 0:03:00]}  Nf6 {[%clk 0:02:59]} 2. c4 {[%clk 0:02:58]}  g6 {[%clk 0:02:59]} 3. Nc3 {[%clk 0:02:58]}  Bg7 {[%clk 0:02:59]} 4. e4 {[%clk 0:02:59]}  d6 {[%clk 0:03:00]} 5. Nf3 {[%clk 0:02:59]}  O-O {[%clk 0:03:00]} 6. Be2 {[%clk 0:03:00]}  e5 {[%clk 0:02:59]} 7. Be3 {[%clk 0:03:00]}  Nbd7 {[%clk 0:02:58]} 8. O-O {[%clk 0:02:58]}  c6 {[%clk 0:02:58]} 9. h3 {[%clk 0:02:56]}  Re8 {[%clk 0:02:52]} 10. Qc2 {[%clk 0:02:56]}  a6 {[%clk 0:02:48]} 11. Rfd1 {[%clk 0:02:53]}  Qe7 {[%clk 0:02:48]} 12. a4 {[%clk 0:02:47]}  a5 {[%clk 0:02:45]} 13. d5 {[%clk 0:02:41]}  c5 {[%clk 0:02:36]} 14. Nb5 {[%clk 0:02:40]}  Rf8 {[%clk 0:02:31]} 15. Qd2 {[%clk 0:02:35]}  Ne8 {[%clk 0:02:18]} 16. Bh6 {[%clk 0:02:34]}  Bxh6 {[%clk 0:02:08]} 17. Qxh6 {[%clk 0:02:33]}  f6 {[%clk 0:02:05]} 18. Nh2 {[%clk 0:02:23]}  Qg7 {[%clk 0:02:02]} 19. Qxg7+ {[%clk 0:02:21]}  Kxg7 {[%clk 0:02:02]} 20. g3 {[%clk 0:02:13]}  h5 {[%clk 0:01:59]} 21. h4 {[%clk 0:02:08]}  Nb8 {[%clk 0:01:57]} 22. Nf1 {[%clk 0:02:04]}  Na6 {[%clk 0:01:56]} 23. Ne3 {[%clk 0:02:04]}  Nb4 {[%clk 0:01:53]} 24. f4 {[%clk 0:02:01]}  Bd7 {[%clk 0:01:48]} 25. Nc3 {[%clk 0:01:58]}  Kh6 {[%clk 0:01:25]} 26. Rf1 {[%clk 0:01:56]}  Ng7 {[%clk 0:01:18]} 27. Kf2 {[%clk 0:01:50]}  Rae8 {[%clk 0:01:17]} 28. Ke1 {[%clk 0:01:50]}  Bh3 {[%clk 0:01:14]} 29. Rh1 {[%clk 0:01:48]}  Bd7 {[%clk 0:01:13]} 30. Kd2 {[%clk 0:01:48]}  Re7 {[%clk 0:01:12]} 31. Raf1 {[%clk 0:01:45]}  Ree8 {[%clk 0:00:52]} 32. f5 {[%clk 0:01:43]}  gxf5 {[%clk 0:00:47]} 33. exf5 {[%clk 0:01:43]}  e4 {[%clk 0:00:38]} 34. Rf4 {[%clk 0:01:43]}  Re5 {[%clk 0:00:34]} 35. g4 {[%clk 0:01:27]}  Rf7 {[%clk 0:00:05]} 36. Rg1 {[%clk 0:01:26]}  hxg4 {[%clk 0:00:04]} 37. Nxg4+ {[%clk 0:01:26]}  Kh7 {[%clk 0:00:03]} 38. Nxe5 {[%clk 0:01:26]}  fxe5 {[%clk 0:00:01]} 39. Rff1 {[%clk 0:01:21]}  Nxf5 {[%clk 0:00:00]} 40. Nxe4 {[%clk 0:01:19]} 1-0


[Site "https://www.chess.com"]

[Event "Titled Tuesday Blitz July 18 Early 2023"]
[White "Kiseljova, Marya"]
[Black "Rodriguez Santiago, Jaime"]
[WhiteFideId "4155009"]
[BlackFideId "3100898"]
[WhiteElo "2130"]
[BlackElo "2377"]
[Result "0-1"]
[Round "4"]
[TimeControl "180+2"]
[Date "2023.07.18"]
[WhiteClock "0:00:00"]
[BlackClock "0:00:23"]
[Board "201"]

1. d4 {[%clk 0:02:58]}  Nf6 {[%clk 0:02:59]} 2. c4 {[%clk 0:02:59]}  e6 {[%clk 0:03:00]} 3. Nf3 {[%clk 0:02:57]}  d5 {[%clk 0:02:59]} 4. g3 {[%clk 0:02:57]}  dxc4 {[%clk 0:02:58]} 5. Bg2 {[%clk 0:02:57]}  c5 {[%clk 0:02:58]} 6. Qa4+ {[%clk 0:02:50]}  Nbd7 {[%clk 0:02:37]} 7. O-O {[%clk 0:02:41]}  a6 {[%clk 0:02:35]} 8. dxc5 {[%clk 0:02:32]}  Bxc5 {[%clk 0:02:32]} 9. Qxc4 {[%clk 0:02:30]}  b5 {[%clk 0:02:32]} 10. Qh4 {[%clk 0:02:26]}  Bb7 {[%clk 0:02:31]} 11. Nc3 {[%clk 0:02:19]}  Rc8 {[%clk 0:02:27]} 12. Bg5 {[%clk 0:02:17]}  h6 {[%clk 0:02:25]} 13. Rad1 {[%clk 0:02:14]}  Qb6 {[%clk 0:02:20]} 14. Bc1 {[%clk 0:01:54]}  a5 {[%clk 0:02:06]} 15. Nd2 {[%clk 0:01:28]}  Bxg2 {[%clk 0:02:02]} 16. Kxg2 {[%clk 0:01:29]}  b4 {[%clk 0:01:58]} 17. Nce4 {[%clk 0:01:23]}  Nxe4 {[%clk 0:01:53]} 18. Nxe4 {[%clk 0:01:22]}  Qc6 {[%clk 0:01:51]} 19. f3 {[%clk 0:01:22]}  Be7 {[%clk 0:01:49]} 20. Qg4 {[%clk 0:01:19]}  g5 {[%clk 0:01:42]} 21. Nf2 {[%clk 0:01:04]}  Nf6 {[%clk 0:01:37]} 22. Qd4 {[%clk 0:01:03]}  Qc4 {[%clk 0:01:27]} 23. Qxc4 {[%clk 0:00:57]}  Rxc4 {[%clk 0:01:27]} 24. Nd3 {[%clk 0:00:44]}  O-O {[%clk 0:01:20]} 25. e4 {[%clk 0:00:39]}  Rfc8 {[%clk 0:01:15]} 26. Be3 {[%clk 0:00:38]}  g4 {[%clk 0:01:04]} 27. Ne5 {[%clk 0:00:33]}  gxf3+ {[%clk 0:01:02]} 28. Rxf3 {[%clk 0:00:26]}  Rxe4 {[%clk 0:00:58]} 29. Nd3 {[%clk 0:00:15]}  Rc2+ {[%clk 0:00:56]} 30. Rd2 {[%clk 0:00:12]}  Rxd2+ {[%clk 0:00:55]} 31. Bxd2 {[%clk 0:00:13]}  Ng4 {[%clk 0:00:47]} 32. h3 {[%clk 0:00:11]}  Re2+ {[%clk 0:00:47]} 33. Kf1 {[%clk 0:00:09]}  Rxd2 {[%clk 0:00:45]} 34. hxg4 {[%clk 0:00:09]}  Kg7 {[%clk 0:00:44]} 35. a3 {[%clk 0:00:08]}  bxa3 {[%clk 0:00:43]} 36. bxa3 {[%clk 0:00:09]}  Bxa3 {[%clk 0:00:42]} 37. Ne5 {[%clk 0:00:07]}  Bc5 {[%clk 0:00:32]} 38. Nxf7 {[%clk 0:00:07]}  a4 {[%clk 0:00:29]} 39. Ne5 {[%clk 0:00:06]}  a3 {[%clk 0:00:28]} 40. Rf7+ {[%clk 0:00:07]}  Kg8 {[%clk 0:00:27]} 41. Rb7 {[%clk 0:00:05]}  a2 {[%clk 0:00:26]} 42. Rb8+ {[%clk 0:00:03]}  Kg7 {[%clk 0:00:24]} 43. Rb7+ {[%clk 0:00:03]}  Kf6 {[%clk 0:00:23]} 44. Nd7+ {[%clk 0:00:00]}  Kg5 {[%clk 0:00:23]} 0-1


[Site "https://www.chess.com"]

[Event "Titled Tuesday Blitz July 18 Early 2023"]
[White "Korpics, Zsolt"]
[Black "Ishowmoves57"]
[WhiteFideId "705241"]
[WhiteElo "2329"]
[BlackElo "2119"]
[Result "1-0"]
[Round "4"]
[TimeControl "180+2"]
[Date "2023.07.18"]
[WhiteClock "0:00:09"]
[BlackClock "0:00:00"]
[Board "204"]

1. e4 {[%clk 0:03:00]}  c5 {[%clk 0:02:58]} 2. Nf3 {[%clk 0:03:00]}  Nc6 {[%clk 0:02:58]} 3. d4 {[%clk 0:03:01]}  cxd4 {[%clk 0:02:58]} 4. Nxd4 {[%clk 0:03:02]}  e5 {[%clk 0:02:57]} 5. Nb5 {[%clk 0:03:01]}  d6 {[%clk 0:02:56]} 6. N1c3 {[%clk 0:03:01]}  a6 {[%clk 0:02:54]} 7. Na3 {[%clk 0:03:02]}  b5 {[%clk 0:02:50]} 8. Nd5 {[%clk 0:03:03]}  Nf6 {[%clk 0:02:47]} 9. Bg5 {[%clk 0:03:01]}  Be7 {[%clk 0:02:48]} 10. Bxf6 {[%clk 0:03:00]}  Bxf6 {[%clk 0:02:49]} 11. c4 {[%clk 0:03:00]}  Nd4 {[%clk 0:02:36]} 12. cxb5 {[%clk 0:02:59]}  axb5 {[%clk 0:02:34]} 13. Nxb5 {[%clk 0:02:43]}  O-O {[%clk 0:02:26]} 14. Nxd4 {[%clk 0:02:35]}  exd4 {[%clk 0:02:22]} 15. Bd3 {[%clk 0:02:28]}  Qa5+ {[%clk 0:02:19]} 16. b4 {[%clk 0:02:27]}  Qa3 {[%clk 0:02:14]} 17. O-O {[%clk 0:02:13]}  Bg5 {[%clk 0:01:57]} 18. f4 {[%clk 0:02:09]}  Bh6 {[%clk 0:01:57]} 19. Qf3 {[%clk 0:02:01]}  Bg4 {[%clk 0:01:43]} 20. Nf6+ {[%clk 0:01:48]}  gxf6 {[%clk 0:01:38]} 21. Qxg4+ {[%clk 0:01:48]}  Kh8 {[%clk 0:01:38]} 22. Rf3 {[%clk 0:01:47]}  Qb2 {[%clk 0:01:21]} 23. Rb1 {[%clk 0:01:41]}  Qd2 {[%clk 0:01:12]} 24. Qh5 {[%clk 0:00:52]}  Rxa2 {[%clk 0:00:48]} 25. Bf1 {[%clk 0:00:21]}  Bxf4 {[%clk 0:00:27]} 26. Rh3 {[%clk 0:00:21]}  Be3+ {[%clk 0:00:27]} 27. Kh1 {[%clk 0:00:21]}  h6 {[%clk 0:00:26]} 28. Qf5 {[%clk 0:00:19]}  Rg8 {[%clk 0:00:19]} 29. Qxf6+ {[%clk 0:00:17]}  Rg7 {[%clk 0:00:13]} 30. Rg3 {[%clk 0:00:15]}  Bg5 {[%clk 0:00:09]} 31. Qf5 {[%clk 0:00:14]}  Bf4 {[%clk 0:00:03]} 32. Rxg7 {[%clk 0:00:09]}  Kxg7 {[%clk 0:00:02]} 33. Qg4+ {[%clk 0:00:10]}  Kf6 {[%clk 0:00:00]} 34. Bc4 {[%clk 0:00:09]} 1-0


[Site "https://www.chess.com"]

[Event "Titled Tuesday Blitz July 18 Early 2023"]
[White "Penagalapati, Abhinav"]
[Black "arturdailima"]
[WhiteFideId "30938210"]
[WhiteElo "1991"]
[BlackElo "2269"]
[Result "1-0"]
[Round "4"]
[TimeControl "180+2"]
[Date "2023.07.18"]
[WhiteClock "0:00:34"]
[BlackClock "0:01:00"]
[Board "211"]

1. Nf3 {[%clk 0:03:00]}  d6 {[%clk 0:03:00]} 2. g3 {[%clk 0:03:00]}  Nf6 {[%clk 0:03:01]} 3. Bg2 {[%clk 0:03:00]}  g6 {[%clk 0:03:01]} 4. O-O {[%clk 0:03:01]}  Bg7 {[%clk 0:03:02]} 5. b3 {[%clk 0:03:00]}  O-O {[%clk 0:03:03]} 6. Bb2 {[%clk 0:03:00]}  e5 {[%clk 0:03:03]} 7. c4 {[%clk 0:03:00]}  Qe7 {[%clk 0:03:04]} 8. d3 {[%clk 0:02:59]}  Nc6 {[%clk 0:03:03]} 9. Nbd2 {[%clk 0:02:59]}  Nh5 {[%clk 0:03:03]} 10. Qc2 {[%clk 0:02:47]}  f5 {[%clk 0:03:03]} 11. e3 {[%clk 0:02:29]}  f4 {[%clk 0:03:04]} 12. exf4 {[%clk 0:02:23]}  exf4 {[%clk 0:03:04]} 13. Rae1 {[%clk 0:02:22]}  Qf7 {[%clk 0:03:03]} 14. Ng5 {[%clk 0:02:12]}  Qf5 {[%clk 0:03:01]} 15. Bd5+ {[%clk 0:02:08]}  Kh8 {[%clk 0:02:58]} 16. Ndf3 {[%clk 0:01:41]}  h6 {[%clk 0:02:45]} 17. Ne6 {[%clk 0:01:12]}  Bxe6 {[%clk 0:02:38]} 18. Bxe6 {[%clk 0:01:11]}  Qc5 {[%clk 0:02:39]} 19. d4 {[%clk 0:01:05]}  Nxd4 {[%clk 0:02:33]} 20. Nxd4 {[%clk 0:01:06]}  Bxd4 {[%clk 0:02:33]} 21. b4 {[%clk 0:01:01]}  Qb6 {[%clk 0:02:17]} 22. Qxg6 {[%clk 0:00:50]}  Rf6 {[%clk 0:02:12]} 23. Bxd4 {[%clk 0:00:48]}  Qxd4 {[%clk 0:02:13]} 24. Qxh5 {[%clk 0:00:48]}  fxg3 {[%clk 0:02:10]} 25. hxg3 {[%clk 0:00:47]}  Raf8 {[%clk 0:02:08]} 26. Qg4 {[%clk 0:00:43]}  Qb2 {[%clk 0:01:58]} 27. Re2 {[%clk 0:00:42]}  Qc3 {[%clk 0:01:57]} 28. Bd5 {[%clk 0:00:40]}  Rf5 {[%clk 0:01:40]} 29. b5 {[%clk 0:00:28]}  Rg5 {[%clk 0:01:39]} 30. Qh4 {[%clk 0:00:28]}  Qf6 {[%clk 0:01:33]} 31. Re6 {[%clk 0:00:26]}  Rxg3+ {[%clk 0:00:59]} 32. Qxg3 {[%clk 0:00:27]}  Qg5 {[%clk 0:00:57]} 33. Qxg5 {[%clk 0:00:27]}  hxg5 {[%clk 0:00:57]} 34. Kg2 {[%clk 0:00:27]}  Kg7 {[%clk 0:00:57]} 35. Rh1 {[%clk 0:00:27]}  c6 {[%clk 0:00:57]} 36. bxc6 {[%clk 0:00:27]}  bxc6 {[%clk 0:00:57]} 37. Bxc6 {[%clk 0:00:27]}  Rf4 {[%clk 0:00:57]} 38. Bd5 {[%clk 0:00:27]}  Rg4+ {[%clk 0:00:57]} 39. Kf3 {[%clk 0:00:27]}  Rd4 {[%clk 0:00:57]} 40. Ke3 {[%clk 0:00:28]}  Rf4 {[%clk 0:00:56]} 41. Re7+ {[%clk 0:00:28]}  Kf6 {[%clk 0:00:56]} 42. Rhh7 {[%clk 0:00:28]}  Kg6 {[%clk 0:00:55]} 43. Reg7+ {[%clk 0:00:28]}  Kf6 {[%clk 0:00:56]} 44. Rf7+ {[%clk 0:00:28]}  Ke5 {[%clk 0:00:57]} 45. Re7+ {[%clk 0:00:28]}  Kf5 {[%clk 0:00:57]} 46. Be4+ {[%clk 0:00:28]}  Kg4 {[%clk 0:00:57]} 47. Bd5 {[%clk 0:00:27]}  a5 {[%clk 0:00:53]} 48. Re4 {[%clk 0:00:27]}  Kf5 {[%clk 0:00:53]} 49. Rxf4+ {[%clk 0:00:27]}  gxf4+ {[%clk 0:00:53]} 50. Kf3 {[%clk 0:00:28]}  Ke5 {[%clk 0:00:54]} 51. Rh5+ {[%clk 0:00:28]}  Kd4 {[%clk 0:00:54]} 52. Kxf4 {[%clk 0:00:29]}  Kc3 {[%clk 0:00:55]} 53. Rh6 {[%clk 0:00:29]}  Kb2 {[%clk 0:00:55]} 54. Rxd6 {[%clk 0:00:30]}  Kxa2 {[%clk 0:00:56]} 55. Ra6 {[%clk 0:00:31]}  a4 {[%clk 0:00:56]} 56. Rxa4+ {[%clk 0:00:32]}  Kb3 {[%clk 0:00:57]} 57. Ra8 {[%clk 0:00:32]}  Kb4 {[%clk 0:00:58]} 58. Ke5 {[%clk 0:00:32]}  Kc5 {[%clk 0:00:59]} 59. f4 {[%clk 0:00:33]}  Kb4 {[%clk 0:01:00]} 60. f5 {[%clk 0:00:34]}  Kc3 {[%clk 0:01:00]} 61. f6 {[%clk 0:00:34]} 1-0


[Site "https://www.chess.com"]